Cogmind - Beta 15 @@@ ROGUE MODE // 2025.08.08 @ 23:47:06 Player: xack Result: Destroyed by P-80 Master with Gamma Rifle Performance ------------- Evolutions (5) 2500 Regions Visited (15) 3000 Robots Destroyed (140) 700 Value Destroyed (5949) 5949 Prototype IDs (33) 660 Alien Tech Used (0) 0 Bonus (1789) 1789 TOTAL SCORE: 14598 Bonus ------- High Alert Combat Kills 141 Follower Combat Kills 48 Registered with UFD 300 Met Optimus in HQ 500 Met Data Miner 300 MAIN.C Attacked Warlord 500 Cogmind --------- Core Integrity 0/1000 Matter 300/300 Energy 700/700 System Corruption 5% Temperature Cool (0) Movement Walking (170) Ox1 Location -5/Warlord Parts ------- > --- POWER (2) -------- Vortex Chain Reactor > --- PROPULSION (5) --- Experimental Myomer Leg Experimental Myomer Leg > --- UTILITY (6) ------ Large Storage Unit Machine Analyzer Advanced Melee Analysis Suite Core Analyzer Minesniffer Drone Bay (10/10) > --- WEAPON (4) ------- Makeshift Axe Plasma Sword Plasma Sword > --- INVENTORY (15) --- Advanced Cooling System Matter Compressor (250) Experimental Armor Integrity Analyzer Improved Transmission Jammer Phase Shifter Cloaking Device Makeshift Ablative Armor Makeshift Ablative Armor Advanced Hacking Suite System Mapper Heavy Phase Cannon Mini Grenade Launcher Rocket Array Plasma Sword Peak State ------------ > --- POWER ------------ Vortex Chain Reactor > --- PROPULSION ------- Flexi-carbon Leg Flexi-carbon Leg Flexi-carbon Leg Enhanced Flexi-carbon Leg Experimental Myomer Leg > --- UTILITY ---------- Large Storage Unit Machine Analyzer Improved Sensor Array Advanced Melee Analysis Suite Core Analyzer Minesniffer Drone Bay > --- WEAPON ----------- Makeshift Axe Plasma Sword Plasma Sword Plasma Sword > --- INVENTORY -------- Experimental Myomer Leg Advanced Cooling System Matter Compressor Experimental Armor Integrity Analyzer Improved Transmission Jammer Phase Shifter Cloaking Device Makeshift Ablative Armor Makeshift Ablative Armor Advanced Hacking Suite System Mapper Heavy Phase Cannon Mini Grenade Launcher Rocket Array Plasma Sword [Rating: 110] Favorites ----------- Power Improved Ion Engine Engine Improved Ion Engine Power Core Enhanced Nuclear Core Reactor Fusion Reactor Propulsion Flexi-carbon Leg Treads Medium Treads Leg Flexi-carbon Leg Wheel Overtuned Scrapsphere Hover Unit Gravmag System Flight Unit Cooled VTOL Module Utility Large Storage Unit Device Seismic Detector Storage Large Storage Unit Processor Advanced Melee Analysis Suite Hackware Hacking Suite Protection Makeshift Light Armor Plating Weapon Plasma Sword Energy Gun Beam Rifle Energy Cannon Heavy Phase Cannon Ballistic Gun Barrage Gun Ballistic Cannon Bore Cannon Launcher Mini Grenade Launcher Impact Weapon Shock Maul Slashing Weapon Plasma Sword Piercing Weapon Makeshift Spear Build | -11 -10 -10 -8 -8 -6 -6 -6 -6 -6 -6 -5 -5 -5 -5 -5 ------- Run | Yrd Mat Sub Rec Scr Fac Was Fac Low Low Dat Pro Fac Upp Upp War Slots Evolved 10 | . . . . . 8 . . . . . . 2 . . . Power 1 | . . . . . 1 . . . . . . . . . . Propulsion 3 | . . . . . 3 . . . . . . . . . . Utility 4 | . . . . . 3 . . . . . . 1 . . . Weapon 2 | . . . . . 1 . . . . . . 1 . . . Parts Attached 179 | 8 8 10 1 5 10 . 48 4 1 . 3 67 7 1 6 Power 32 | 1 2 1 1 . 2 . 11 . . . . 12 1 . 1 Engine 12 | 1 2 1 1 . 1 . 5 . . . . 1 . . . Core 17 | . . . . . 1 . 6 . . . . 9 1 . . Reactor 3 | . . . . . . . . . . . . 2 . . 1 Propulsion 53 | 2 1 2 . 2 3 . 11 . . . 1 25 4 . 2 Treads 11 | 2 1 1 . 1 . . 3 . . . 1 2 . . . Leg 30 | . . 1 . 1 2 . 2 . . . . 18 4 . 2 Wheel 2 | . . . . . 1 . 1 . . . . . . . . Hover 7 | . . . . . . . 3 . . . . 4 . . . Flight 3 | . . . . . . . 2 . . . . 1 . . . Utility 49 | 2 1 1 . 2 3 . 17 1 1 . . 18 1 . 2 Device 23 | 1 . . . . 3 . 10 . . . . 7 . . 2 Storage 6 | 1 1 . . 1 . . 1 . 1 . . 1 . . . Processor 7 | . . . . 1 . . 2 . . . . 4 . . . Hackware 2 | . . . . . . . . . . . . 2 . . . Protection 11 | . . 1 . . . . 4 1 . . . 4 1 . . Artifact . | . . . . . . . . . . . . . . . . Weapon 45 | 3 4 6 . 1 2 . 9 3 . . 2 12 1 1 1 Energy Gun 8 | 2 2 1 . . . . 3 . . . . . . . . Energy Cannon 1 | . . . . . . . . . . . . 1 . . . Ballistic Gun 13 | 1 1 3 . 1 1 . 4 . . . . 2 . . . Ballistic Cannon 3 | . . 1 . . . . 1 . . . 1 . . . . Launcher 3 | . 1 . . . . . . 1 . . 1 . . . . Special Weapon . | . . . . . . . . . . . . . . . . Impact Weapon 2 | . . . . . . . 1 . . . . . . 1 . Slashing Weapon 14 | . . . . . 1 . . 2 . . . 9 1 . 1 Piercing Weapon 1 | . . 1 . . . . . . . . . . . . . Special Melee Weapon . | . . . . . . . . . . . . . . . . Unidentified Prototypes 14 | . . . . . . . 6 2 . . . 3 . . 3 Corrupted Parts 2 | . . . . . . . . . . . 1 . 1 . . System Corruption 11 | . . . . . . . . . . . 9 . 2 . . Parts Lost 69 | . 1 2 . . . 1 25 . . . 7 21 1 4 7 Power 6 | . 1 . . . . . 5 . . . . . . . . Propulsion 32 | . . 2 . . . 1 7 . . . 5 11 . 1 5 Utility 22 | . . . . . . . 10 . . . 2 6 1 2 1 Weapon 9 | . . . . . . . 3 . . . . 4 . 1 1 Highest Loss Streak 8 | . 1 1 . . . 1 8 . . . 7 3 1 4 6 To Critical Strikes . | . . . . . . . . . . . . . . . . Average Backups 13 | 4 13 13 14 13 11 14 13 14 18 20 15 13 14 13 14 Power 1 | . . 3 3 1 . 1 . 1 1 1 . . . . . Propulsion 1 | 2 2 1 1 1 1 1 1 1 1 1 . . 1 . . Utility 8 | . 4 6 7 8 6 8 8 8 11 13 10 8 7 8 9 Weapon 3 | . 5 2 2 2 2 4 3 3 4 5 4 3 5 5 4 Tool/Special . | . . . . . . . . . . . . . . . . Unused Backups 57 | . 7 5 . 10 . . 8 3 . . 3 7 . 1 13 Power 3 | . . . . 2 . . . . . . . 1 . . . Propulsion 8 | . 3 1 . 2 . . . 1 . . . 1 . . . Utility 35 | . . 1 . 5 . . 7 2 . . 2 4 . 1 13 Weapon 9 | . 4 3 . . . . 1 . . . 1 . . . . Tool/Special 2 | . . . . 1 . . . . . . . 1 . . . Average Slot Usage (%) 94 | . 99 99 100 98 86 87 87 99 93 93 83 94 99 96 93 Engine 7 | . 14 13 14 14 6 3 6 . . . . 1 . . . Core 4 | . . . . . 5 6 4 13 13 13 13 8 11 11 6 Treads 8 | . 27 16 14 2 . . 6 20 20 20 14 1 . . . Leg 15 | . . 11 14 25 25 23 10 . . . . 21 29 29 25 Wheel 1 | . . . . . 1 6 6 . . . . . . . . Hover 2 | . . . . . . . 4 13 13 13 7 1 . . . Device 10 | . 14 7 14 10 19 20 13 12 6 6 5 7 9 9 10 Storage 8 | . 14 14 14 14 6 6 6 6 6 6 6 5 5 5 5 Processor 7 | . . . . 3 . . 2 13 13 13 13 16 17 17 17 Protection 2 | . . 6 . . . . 6 . . . 1 1 1 . . Energy Gun 1 | . 17 . . . . . 2 3 . . . . . . . Ballistic Gun 8 | . 10 14 14 25 15 13 7 . . . . . . . . Ballistic Cannon 1 | . . 10 . . . . 1 3 . . . . . . . Impact Weapon 1 | . . . . . . . 4 6 6 6 5 . . 2 2 Slashing Weapon 7 | . . . . . 4 6 . 6 13 13 12 19 23 17 20 Piercing Weapon 1 | . . 2 14 1 . . . . . . . . . . . Peak Build Rating 110 | 7 12 23 22 33 63 63 72 73 68 67 68 97 100 97 110 Average Rating 52 | 5 10 20 22 26 57 58 64 68 66 67 59 81 95 89 95 On Entrance 50 | . 7 12 22 22 26 63 52 70 68 67 67 52 94 97 91 Naked Turns . | . . . . . . . . . . . . . . . . Heaviest Build 83 | 13 34 42 33 34 63 62 70 53 83 64 64 70 74 71 78 Greatest Support 114 | 40 40 40 25 45 91 91 88 84 84 84 84 111 114 114 113 Greatest Overweight (x) 16 | . . 1 1 1 . . 2 . . . 1 16 . . 1 Average Overweight (x) . | . . . 1 . . . . . . . . . . . . Largest Inventory Capacity 25 | 8 15 15 15 15 15 15 15 15 25 25 25 15 15 15 15 Average Capacity 15 | 7 14 15 15 15 15 15 15 15 24 25 20 15 15 15 15 Most Carried 24 | 6 15 15 15 15 15 15 15 15 24 24 24 15 15 15 15 Average Carried 14 | 4 13 14 15 14 11 15 14 14 20 24 18 14 14 14 14 Final Capacity 25 | 8 15 15 15 15 15 15 15 15 25 25 15 15 15 15 15 Final Carried 24 | 6 15 15 15 15 15 15 15 15 24 24 15 15 15 15 14 Class Distribution -------------------- 45% | Mutant 27% | Gladiator 9% | Scavenger-Gladiator 7% | Scavenger-Mutant 5% | Scrapper 3% | Scavenger-Scrapper Dominant Class ---------------- Mutant | -10/Materials Mutant | -10/Subcaves Mutant | -8/Recycling Mutant | -8/Scraptown Scrapper | -6/Factory Scrapper | -6/Waste Mutant | -6/Factory Mutant | -6/Lower Caves Gladiator | -6/Lower Caves Gladiator | -6/Data Miner Gladiator | -5/Proximity Caves Scavenger-Gladiator | -5/Factory Gladiator | -5/Upper Caves Gladiator | -5/Upper Caves Gladiator | -5/Warlord Resources | -11 -10 -10 -8 -8 -6 -6 -6 -6 -6 -6 -5 -5 -5 -5 -5 ----------- Run | Yrd Mat Sub Rec Scr Fac Was Fac Low Low Dat Pro Fac Upp Upp War Matter Collected 5109 | 274 296 556 10 20 498 . 1339 4 174 . 201 1371 249 65 52 Remotely . | . . . . . . . . . . . . . . . . Salvage Created 6551 | 50 386 170 . . 564 . 2089 . 82 . 115 2576 396 123 . Parts 288 | 6 19 14 . . 23 . 61 . . . 9 123 22 11 . Haulers Intercepted 2 | . 1 . . . . . 1 . . . . . . . . Recyclers Shooed 3 | . 1 . . . . . 1 . . . . 1 . . . Parts Field Recycled . | . . . . . . . . . . . . . . . . Retrieved Matter . | . . . . . . . . . . . . . . . . Parts Self-Destructed 52 | . . 18 . . . . . . 1 . 6 . 18 9 . Prevented 3 | . . . . . . . . . 1 . 1 . 1 . . Kills | -11 -10 -10 -8 -8 -6 -6 -6 -6 -6 -6 -5 -5 -5 -5 -5 ------- Run | Yrd Mat Sub Rec Scr Fac Was Fac Low Low Dat Pro Fac Upp Upp War Combat Hostiles Destroyed 117 | . 10 6 . . 3 . 34 . 2 . 7 42 8 5 . Melee 66 | . . . . . . . 10 . . . 1 42 8 5 . Guns 22 | . 10 4 . . 3 . 5 . . . . . . . . Cannons 2 | . . 2 . . . . . . . . . . . . . AOE 6 | . . . . . . . . . . . 6 . . . . Classes Destroyed 15 | 1 4 2 . . 2 . 4 . . . . 2 . . . Worker 1 | . . . . . . . . . . . . 1 . . . Tunneler 4 | 2 . . . . . . . . . . . 2 . . . Hauler 2 | . 1 . . . . . 1 . . . . . . . . Recycler 6 | . . . . . 3 . 2 . . . . 1 . . . Operator 1 | . . . . . . . 1 . . . . . . . . Turret 2 | . . 2 . . . . . . . . . . . . . Watcher 7 | . 3 . . . . . 1 . . . . 3 . . . Swarmer 32 | . 6 3 . . . . 3 . . . 5 8 2 5 . Grunt 32 | . 4 . . . . . 12 . . . 1 13 2 . . Brawler 1 | . . . . . . . . . . . . 1 . . . Duelist 2 | . . . . . . . 2 . . . . . . . . Sentry 13 | . . . . . . . 6 . . . . 6 1 . . Hunter 16 | . . . . . . . 6 . 1 . 1 6 2 . . Programmer 18 | . . . . . 3 . 5 . 1 . . 8 1 . . Subdweller 3 | . . 3 . . . . . . . . . . . . . Best Kill Streak 7 | 1 3 4 . . 4 . 3 . 1 . 4 7 3 5 . Combat Bots Only 6 | . 3 3 . . 1 . 3 . 1 . 4 6 3 5 . Max Kills in Single Turn 4 | 1 1 1 . . 1 . 1 . 1 . 4 2 1 1 . Gunslinging . | . . . . . . . . . . . . . . . . Exploded 4 | . . . . . . . . . . . 4 . . . . Melee 2 | . . . . . . . 1 . . . 1 2 1 1 . Uniques/NPCs Destroyed . | . . . . . . . . . . . . . . . . Combat | -11 -10 -10 -8 -8 -6 -6 -6 -6 -6 -6 -5 -5 -5 -5 -5 -------- Run | Yrd Mat Sub Rec Scr Fac Was Fac Low Low Dat Pro Fac Upp Upp War Hostile Shots Fired 1284 | . 42 73 . . 30 1 555 . 17 . 55 287 57 51 116 Missed 403 | . 6 29 . . 9 . 200 . 5 . 17 76 13 7 41 Hits 881 | . 36 44 . . 21 1 355 . 12 . 38 211 44 44 75 Melee 13 | . . . . . . 1 11 . . . . 1 . . . Projectile 868 | . 36 44 . . 21 . 344 . 12 . 38 210 44 44 75 AOE 20 | . . . . . . . 4 . . . . 7 . . 9 Critical Strikes 32 | . . 1 . . 4 1 11 . . . 1 12 . . 2 Part Disruptions 1 | . . . . . . . . . . . . . . . 1 Damage Taken 14470 | . 403 751 . . 233 40 4859 . 192 . 707 4089 805 672 1719 Core 1722 | . 78 28 . . 22 40 456 . 37 . 55 539 85 50 332 Absorbed by Shields 473 | . . . . . 84 14 250 . . . . 125 . . . Regen/Repaired (Parts) 479 | . 147 . . . 98 . 20 . . . . 31 . . 183 Core Remaining (%) 61 | 100 . . . 57 . . . . . . 28 . . . . Volleys Fired 163 | 5 42 57 . . 16 . 27 . . . 9 7 . . . Largest 3 | 2 2 2 . . 3 . 3 . . . 1 1 . . . Hottest 118 | 90 112 83 . . 81 . 118 . . . 44 90 . . . Shots Fired 327 | 10 83 99 . . 47 . 72 . . . 9 7 . . . Gun 279 | 10 82 69 . . 47 . 71 . . . . . . . . Cannon 40 | . . 30 . . . . 1 . . . 2 7 . . . Launcher 8 | . 1 . . . . . . . . . 7 . . . . Special . | . . . . . . . . . . . . . . . . Kinetic 220 | 1 22 89 . . 47 . 59 . . . 2 . . . . Thermal 82 | 5 60 10 . . . . . . . . . 7 . . . Explosive 8 | . 1 . . . . . . . . . 7 . . . . Electromagnetic 17 | 4 . . . . . . 13 . . . . . . . . Robot Hit Streak 10 | 3 10 5 . . 7 . 5 . . . 4 2 . . . Robot Miss Streak 7 | 2 4 5 . . 7 . 6 . . . 2 . . . . Penetration Max . | . . . . . . . . . . . . . . . . Secondary Targets 2 | . . . . . . . 2 . . . . . . . . Max Gunslinging Chain 1 | . . . . . . . 1 . . . . . . . . Shots Hit Robots 393 | 6 51 49 . . 24 . 104 . 6 . 5 122 17 9 . Core Hits 165 | 2 21 16 . . 9 . 26 . . . 12 64 10 5 . Critical Kills 7 | . . 2 . . . . 4 . . . 1 . . . . Critical Parts Destroyed 25 | . . . . . . . 22 . 3 . . . . . . Critical Strikes 61 | . 1 8 . . . . 26 . 3 . 1 20 2 . . Burn 1 | . 1 . . . . . . . . . . . . . . Destroy 9 | . . 8 . . . . 1 . . . . . . . . Smash 29 | . . . . . . . 25 . 3 . 1 . . . . Sever 22 | . . . . . . . . . . . . 20 2 . . Melee Attacks 406 | . . . . . 9 . 119 . 9 . 5 220 25 19 . Impact 126 | . . . . . . . 118 . 5 . 3 . . . . Slashing 280 | . . . . . 9 . 1 . 4 . 2 220 25 19 . Piercing . | . . . . . . . . . . . . . . . . Sneak Attacks 12 | . . . . . 3 . 4 . . . . 5 . . . Combat Hostiles 1 | . . . . . . . . . . . . 1 . . . Follow-up Attacks 51 | . . . . . . . . . 2 . 1 38 6 4 . Damage Inflicted 14442 | 73 736 819 . . 628 . 4630 . 268 . 748 5404 755 381 . Guns 2675 | 73 736 596 . . 437 . 833 . . . . . . . . Cannons 266 | . . 223 . . . . . . . . . 43 . . . Explosions 614 | . . . . . . . . . . . 614 . . . . Melee 10887 | . . . . . 191 . 3797 . 268 . 134 5361 755 381 . Ramming . | . . . . . . . . . . . . . . . . Kinetic 1958 | 11 178 759 . . 437 . 573 . . . . . . . . Thermal 698 | 37 558 60 . . . . . . . . . 43 . . . Explosive 614 | . . . . . . . . . . . 614 . . . . Electromagnetic 285 | 25 . . . . . . 260 . . . . . . . . Impact 4124 | . . . . . . . 3797 . 193 . 134 . . . . Slashing 6763 | . . . . . 191 . . . 75 . . 5361 755 381 . Piercing . | . . . . . . . . . . . . . . . . Highest Corruption 25 | . . . . . 3 9 15 15 16 16 25 7 10 10 10 Average Corruption 8 | . . . . . 1 8 7 15 15 16 20 2 7 10 6 Corruption Purged 5 | . . . . . . . 5 . . . . . . . . Corruption Blocked . | . . . . . . . . . . . . . . . . Effects 234 | . . . . . 2 5 78 24 29 5 29 29 13 18 2 Message Errors 63 | . . . . . 1 . 23 8 5 2 9 5 4 6 . Matter Fused 48 | . . . . . . 1 17 5 6 . 7 8 1 3 . Heat Flow Errors 39 | . . . . . . 1 10 3 8 . 6 5 1 4 1 Energy Discharges 32 | . . . . . . 1 8 3 7 2 3 5 2 1 . Parts Rejected 3 | . . . . . . 1 1 . . . . 1 . . . Parts Fused 2 | . . . . . . 1 . . . . . 1 . . . Data Loss (minor) 25 | . . . . . . . 9 3 2 . 2 3 3 2 1 Data Loss (major) 10 | . . . . . . . 3 2 . . 1 1 2 1 . Misfires 5 | . . . . . 1 . 4 . . . . . . . . Alerts 6 | . . . . . . . 2 . 1 1 1 . . 1 . Weapon Failures 1 | . . . . . . . 1 . . . . . . . . Overload Shots . | . . . . . . . . . . . . . . . . Overflow Damage 1854 | . 11 . . . . . 1432 . 153 . 104 154 . . . Projectiles 3 | . . . . . . . . . . . . 3 . . . Explosions 103 | . 11 . . . . . . . . . 92 . . . . Melee 1748 | . . . . . . . 1432 . 153 . 12 151 . . . Knockbacks 20 | . . 2 . . . . 15 . 2 . 1 . . . . Impact 18 | . . . . . . . 15 . 2 . 1 . . . . Kinetic 2 | . . 2 . . . . . . . . . . . . . Secondary . | . . . . . . . . . . . . . . . . Self-Inflicted Damage 23 | . 23 . . . . . . . . . . . . . . Shots 1 | . 1 . . . . . . . . . . . . . . Rammed . | . . . . . . . . . . . . . . . . Targets Rammed . | . . . . . . . . . . . . . . . . Kicked . | . . . . . . . . . . . . . . . . Crushed . | . . . . . . . . . . . . . . . . Highest Temperature 335 | 90 234 8 . . 182 179 335 266 270 . 260 236 110 255 226 Average Temperature 88 | 45 81 3 . . 70 87 104 91 99 . 84 87 63 128 102 Received Heat Transfer 1893 | . 150 135 . . . . 882 . . . 126 510 36 . 54 Effects 4 | . . . . . . . 1 . 1 . . 1 . 1 . Shutdowns 1 | . . . . . . . 1 . . . . . . . . Energy Bleed 3 | . . . . . . . . . 1 . . 1 . 1 . Siege Activations . | . . . . . . . . . . . . . . . . Martial Activations . | . . . . . . . . . . . . . . . . Shielding Activations . | . . . . . . . . . . . . . . . . Robots Disrupted . | . . . . . . . . . . . . . . . . Combat Hostiles . | . . . . . . . . . . . . . . . . Robots Corrupted 22 | . . . . . . . 20 . 2 . . . . . . Combat Hostiles 21 | . . . . . . . 19 . 2 . . . . . . Parts Fried 23 | . . . . . . . 20 . 2 . 1 . . . . Impact Corruptions 55 | . . . . . . . 47 . 7 . 1 . . . . Robots Melted . | . . . . . . . . . . . . . . . . Combat Hostiles . | . . . . . . . . . . . . . . . . Parts Melted 4 | . 1 1 . . . . . . . . . 2 . . . Heat Transferred 1740 | 111 1517 75 . . . . . . . . . 37 . . . Parts Sabotaged . | . . . . . . . . . . . . . . . . Parts Stolen . | . . . . . . . . . . . . . . . . Parts Stripped . | . . . . . . . . . . . . . . . . Power Chain Reactions . | . . . . . . . . . . . . . . . . Alert | -11 -10 -10 -8 -8 -6 -6 -6 -6 -6 -6 -5 -5 -5 -5 -5 ------- Run | Yrd Mat Sub Rec Scr Fac Was Fac Low Low Dat Pro Fac Upp Upp War Maximum Alert Level 2 | . . . . . . . 2 . . . . 2 . . . Low Security (%) 77 | 100 100 . 100 . 100 100 69 . . . . 62 . . . Level 1 13 | . . . . . . . 22 . . . . 20 . . . Level 2 8 | . . . . . . . 7 . . . . 16 . . . Level 3 . | . . . . . . . . . . . . . . . . Level 4 . | . . . . . . . . . . . . . . . . Level 5 . | . . . . . . . . . . . . . . . . High Security . | . . . . . . . . . . . . . . . . Max Security . | . . . . . . . . . . . . . . . . Peak Influence 596 | 5 114 . 50 . 31 7 415 . . . . 596 . . . Initial 46 | . . . . . . 7 . . . . . 46 . . . Average 113 | . 18 . 3 . 5 1 140 . . . . 195 . . . Influence Increases 3934 | 10 386 160 133 . 116 . 1113 . 60 . 195 1366 180 110 105 Destroy 0b10 Robot/C 2340 | . 200 100 . . 60 . 680 . 40 . 160 840 160 100 . Destroy 0b10 Robot/NC 105 | 10 20 . . . 15 . 25 . . . . 35 . . . Destroy Leader 528 | . 48 . . . 30 . 194 . 20 . 20 186 20 10 . Allied During Kill 15 | . . . . . . . . . . . 15 . . . . Successful Hack 135 | . 17 . 13 . 5 . 50 . . . . 50 . . . Select Force Hacks 120 | . . . 120 . . . . . . . . . . . . Disable Machine 90 | . 45 . . . . . 30 . . . . 15 . . . Destroy Structure 136 | . 26 . . . 6 . 14 . . . . 90 . . . Partial Spotted 15 | . . . . . . . . . . . . 15 . . . Lose Combat Pursuer 450 | . 30 60 . . . . 120 . . . . 135 . . 105 Influence Decreases 3907 | 10 366 180 133 . 95 21 771 342 60 . 121 845 429 313 221 Entered New Map 610 | . . 10 . . . 14 . 127 . . . 28 221 67 143 Time Decay 2531 | 10 246 160 133 . 95 7 451 215 60 . 121 611 198 206 18 Lost Part 486 | . 10 10 . . . . 170 . . . . 186 10 40 60 Purge Threat 280 | . 110 . . . . . 150 . . . . 20 . . . Squads Dispatched 36 | . . . . . 4 . 15 . . . . 17 . . . Investigation 13 | . . . . . . . 5 . . . . 8 . . . Extermination 11 | . . . . . 1 . 5 . . . . 5 . . . Reinforcement 9 | . . . . . . . 5 . . . . 4 . . . Assault . | . . . . . . . . . . . . . . . . Garrison 3 | . . . . . 3 . . . . . . . . . . Intercept . | . . . . . . . . . . . . . . . . Searches Triggered . | . . . . . . . . . . . . . . . . Data Miner Redirects 3 | . . . . . . . . . . . . 3 . . . Construction Impeded . | . . . . . . . . . . . . . . . . Haulers Reinforced 2 | . . . . . . . 2 . . . . . . . . Active Scanning Responses . | . . . . . . . . . . . . . . . . Cargo Convoy Interrupts . | . . . . . . . . . . . . . . . . Stealth | -11 -10 -10 -8 -8 -6 -6 -6 -6 -6 -6 -5 -5 -5 -5 -5 --------- Run | Yrd Mat Sub Rec Scr Fac Was Fac Low Low Dat Pro Fac Upp Upp War Distress Signals 6 | . 3 . . . . . . . . . . 3 . . . Communications Jammed . | . . . . . . . . . . . . . . . . Distress Signals . | . . . . . . . . . . . . . . . . Times Spotted 191 | . 16 12 . . 5 4 46 . 2 . 8 65 8 5 20 Peak Tracking Total 15 | . 5 4 . . 2 4 4 . 1 . 4 7 3 5 15 Tactical Retreats 17 | . 1 2 . . . . 5 . . . . 7 . . 2 Traps | -11 -10 -10 -8 -8 -6 -6 -6 -6 -6 -6 -5 -5 -5 -5 -5 ------- Run | Yrd Mat Sub Rec Scr Fac Was Fac Low Low Dat Pro Fac Upp Upp War Traps Triggered 9 | . . . . . 2 . 3 . . . . 3 . . 1 Indirectly . | . . . . . . . . . . . . . . . . Trap Hack Attempts . | . . . . . . . . . . . . . . . . Triggered . | . . . . . . . . . . . . . . . . Disarmed . | . . . . . . . . . . . . . . . . Reprogrammed . | . . . . . . . . . . . . . . . . Reused . | . . . . . . . . . . . . . . . . Traps Extracted . | . . . . . . . . . . . . . . . . Installed 1 | . . 1 . . . . . . . . . . . . . Triggered . | . . . . . . . . . . . . . . . . Most Traps Carried 3 | . . . . . . . . . 3 3 3 1 . 1 1 Machines | -11 -10 -10 -8 -8 -6 -6 -6 -6 -6 -6 -5 -5 -5 -5 -5 ---------- Run | Yrd Mat Sub Rec Scr Fac Was Fac Low Low Dat Pro Fac Upp Upp War Machines Disabled 7 | . 3 1 . . . . 2 . . . . 1 . . . Max in Single Turn 2 | . 2 1 . . . . 1 . . . . 1 . . . Garrison Access 3 | . . . . . . . 1 . . . . 2 . . . Machines Repaired . | . . . . . . . . . . . . . . . . Machines Dismantled . | . . . . . . . . . . . . . . . . Machines Sabotaged . | . . . . . . . . . . . . . . . . Overloaded Fab Kills . | . . . . . . . . . . . . . . . . Hacking | -11 -10 -10 -8 -8 -6 -6 -6 -6 -6 -6 -5 -5 -5 -5 -5 --------- Run | Yrd Mat Sub Rec Scr Fac Was Fac Low Low Dat Pro Fac Upp Upp War Machines Accessed 62 | . 8 1 9 2 1 . 11 3 . 4 . 19 1 . 3 Terminals 26 | . 6 . 5 . . . 7 . . . . 7 1 . . Fabricators . | . . . . . . . . . . . . . . . . Repair Stations 4 | . 1 . . . 1 . . . . . . 2 . . . Recycling Units 15 | . 1 . 4 . . . 3 . . . . 7 . . . Scanalyzers . | . . . . . . . . . . . . . . . . Garrison Access 4 | . . . . . . . 1 . . . . 3 . . . Total Hacks 176 | . 27 4 14 21 3 . 21 9 . 28 . 39 1 . 9 Successful 122 | . 14 4 9 21 2 . 9 9 . 28 . 16 1 . 9 Failed 53 | . 13 . 4 . 1 . 12 . . . . 23 . . . Catastrophic 13 | . 2 . 1 . . . 5 . . . . 5 . . . Database Lockouts 1 | . . . 1 . . . . . . . . . . . . Manual 62 | . 11 . 13 . . . 14 . . . . 23 . . 1 Terminals 62 | . 21 . 10 . . . 16 . . . . 14 1 . . Fabricators . | . . . . . . . . . . . . . . . . Repair Stations 14 | . 4 . . . 3 . . . . . . 7 . . . Recycling Units 21 | . 2 . 4 . . . 3 . . . . 12 . . . Scanalyzers . | . . . . . . . . . . . . . . . . Garrison Access 8 | . . . . . . . 2 . . . . 6 . . . Terminal Hacks 83 | . 6 4 2 21 . . 1 9 . 28 . 2 1 . 9 Record 52 | . . 4 . 21 . . . 7 . 11 . . 1 . 8 Part Schematic 10 | . 1 . 1 . . . . . . 8 . . . . . Robot Schematic 6 | . . . . . . . . . . 6 . . . . . Prototype ID Bank 7 | . 2 . 1 . . . . . . 3 . 1 . . . Open Door 3 | . . . . . . . . 2 . . . . . . 1 Unreport Threat 3 | . 1 . . . . . 1 . . . . 1 . . . Hauler Manifests 1 | . 1 . . . . . . . . . . . . . . Zone Layout 1 | . 1 . . . . . . . . . . . . . . Fabricator Hacks . | . . . . . . . . . . . . . . . . Repair Station Hacks 10 | . 4 . . . 2 . . . . . . 4 . . . Scan Component 6 | . 2 . . . 1 . . . . . . 3 . . . Repair 4 | . 2 . . . 1 . . . . . . 1 . . . Recycling Unit Hacks . | . . . . . . . . . . . . . . . . Scanalyzer . | . . . . . . . . . . . . . . . . Garrison Access Hacks 3 | . . . . . . . 1 . . . . 2 . . . Seal Access 3 | . . . . . . . 1 . . . . 2 . . . Unauthorized Hacks 26 | . 4 . 7 . . . 7 . . . . 8 . . . Terminals 13 | . 4 . 3 . . . 4 . . . . 2 . . . Botnet 13 | . 4 . 3 . . . 4 . . . . 2 . . . Fabricators . | . . . . . . . . . . . . . . . . Repair Stations . | . . . . . . . . . . . . . . . . Recycling Units 13 | . . . 4 . . . 3 . . . . 6 . . . Tunnel 4 | . . . 4 . . . . . . . . . . . . Fedlink 9 | . . . . . . . 3 . . . . 6 . . . Scanalyzers . | . . . . . . . . . . . . . . . . Garrison Access . | . . . . . . . . . . . . . . . . Data Cores Recovered . | . . . . . . . . . . . . . . . . Used . | . . . . . . . . . . . . . . . . Hacking Detections 34 | . 8 . 5 . 1 . 7 . . . . 12 1 . . Full Trace Events 3 | . . . . . . . 2 . . . . 1 . . . Feedback Events 1 | . . . . . . . . . . . . 1 . . . Corruption 1 | . . . . . . . . . . . . 1 . . . Feedback Blocked . | . . . . . . . . . . . . . . . . Robot Schematics Acquired 6 | . . . . . . . . . . 6 . . . . . Robots Built . | . . . . . . . . . . . . . . . . Authchips . | . . . . . . . . . . . . . . . . Time . | . . . . . . . . . . . . . . . . Total Robot Build Rating . | . . . . . . . . . . . . . . . . Part Schematics Acquired 9 | . 1 . . . . . . . . 8 . . . . . Parts Built . | . . . . . . . . . . . . . . . . Authchips . | . . . . . . . . . . . . . . . . Time . | . . . . . . . . . . . . . . . . Total Part Build Rating . | . . . . . . . . . . . . . . . . Parts Repaired 4 | . 2 . . . 1 . . . . . . 1 . . . Time 158 | . 52 . . . 62 . . . . . . 44 . . . Parts Recycled . | . . . . . . . . . . . . . . . . Recycled Matter . | . . . . . . . . . . . . . . . . Retrieved Matter . | . . . . . . . . . . . . . . . . Retrieved Components . | . . . . . . . . . . . . . . . . Parts Scanalyzed . | . . . . . . . . . . . . . . . . Part Schematics Acquired . | . . . . . . . . . . . . . . . . Parts Damaged . | . . . . . . . . . . . . . . . . Bothacking | -11 -10 -10 -8 -8 -6 -6 -6 -6 -6 -6 -5 -5 -5 -5 -5 ------------ Run | Yrd Mat Sub Rec Scr Fac Was Fac Low Low Dat Pro Fac Upp Upp War Used RIF Installer . | . . . . . . . . . . . . . . . . Robots Hacked . | . . . . . . . . . . . . . . . . Non-combat . | . . . . . . . . . . . . . . . . Combat . | . . . . . . . . . . . . . . . . Robot Hacks Applied . | . . . . . . . . . . . . . . . . Relay Couplers Released . | . . . . . . . . . . . . . . . . Fabnet Peak Effective % . | . . . . . . . . . . . . . . . . Robots Rewired . | . . . . . . . . . . . . . . . . Allies Hacked . | . . . . . . . . . . . . . . . . Hacks Repelled . | . . . . . . . . . . . . . . . . Allies | -11 -10 -10 -8 -8 -6 -6 -6 -6 -6 -6 -5 -5 -5 -5 -5 -------- Run | Yrd Mat Sub Rec Scr Fac Was Fac Low Low Dat Pro Fac Upp Upp War Total Allies 1 | . . . . . . . . . . . 1 . . . . Largest Group 1 | . . . . . . . . . . . 1 . . . . Highest-Rated Group 96 | . . . . . . . . . . . 96 . . . . Highest-Rated Ally 96 | . . . . . . . . . . . 96 . . . . Total Orders 3 | . . . . . . . 3 . . . . . . . . EXPLORE 2 | . . . . . . . 2 . . . . . . . . RETURN 1 | . . . . . . . 1 . . . . . . . . Ally Attacks 10 | . . . . . . . . . . . 10 . . . . Total Damage 280 | . . . . . . . . . . . 280 . . . . Kills 1 | . . . . . . . . . . . 1 . . . . Allies Corrupted . | . . . . . . . . . . . . . . . . Allies Melted 1 | . . . . . . . . . . . . . . . 1 Intel | -11 -10 -10 -8 -8 -6 -6 -6 -6 -6 -6 -5 -5 -5 -5 -5 ------- Run | Yrd Mat Sub Rec Scr Fac Was Fac Low Low Dat Pro Fac Upp Upp War Active Infowar (turns) 16432 | 11 1122 1582 1398 1583 733 103 2577 505 820 130 644 3436 419 433 936 Sensors 4405 | . . . . . . . 902 504 819 130 425 41 317 395 872 IFF 718 | . . . . . . . 718 . . . . . . . . Terrain 100 | . . . . . 100 . . . . . . . . . . Seismic 9796 | 11 1122 1582 1398 1583 633 103 957 . . . . 2407 . . . Machine Analysis 5023 | . . . . . . . . . . . . 3235 419 433 936 Cloaking 4307 | . . . . . . . 553 502 73 . 219 1437 289 383 851 Robot Analysis Total . | . . . . . . . . . . . . . . . . Derelict Logs Recovered 12 | . . 2 . 3 . . . 1 2 . 2 . . 2 . Drone Launches 2 | . . . . . . . 2 . . . . . . . . Drone Recoveries 1 | . . . . . . . 1 . . . . . . . . Exploration | -11 -10 -10 -8 -8 -6 -6 -6 -6 -6 -6 -5 -5 -5 -5 -5 ------------- Run | Yrd Mat Sub Rec Scr Fac Was Fac Low Low Dat Pro Fac Upp Upp War Turns Passed 18822 | 115 1122 2952 1398 2138 733 103 2857 507 829 130 704 3446 419 433 936 Spaces Moved 11322 | 54 550 1450 733 1633 516 95 1656 307 499 82 349 2028 284 309 777 Core 4 | 3 . . . . . . . . . . . 1 . . . Treads 2565 | 51 550 244 . . . . 403 307 499 82 349 80 . . . Legs 7886 | . . 1206 733 1633 516 95 626 . . . . 1707 284 309 777 Wheels 627 | . . . . . . . 627 . . . . . . . . Hover 240 | . . . . . . . . . . . . 240 . . . Flight . | . . . . . . . . . . . . . . . . Fastest Speed 50 | 50 160 160 190 120 100 105 97 160 160 160 160 111 120 120 100 Average Speed 143 | 153 160 190 190 128 104 107 128 160 160 160 184 128 120 120 117 Slowest Speed 850 | 160 160 240 190 190 105 110 190 160 160 160 240 850 120 120 170 Overloaded Moves . | . . . . . . . . . . . . . . . . Propulsion Burnouts . | . . . . . . . . . . . . . . . . Robots Hopped . | . . . . . . . . . . . . . . . . Potential Cave-ins 2 | . . . . . . . . . . . . 2 . . . Cave-ins Triggered . | . . . . . . . . . . . . . . . . Exploration Rate (%) 59 | 4 89 74 98 89 12 79 41 49 72 70 59 46 54 41 80 Regions Visited 15 Branch Regions 10 Pre-discovered Areas 12 | . . . 4 5 . . 1 . . 1 . . . 1 . Known Exits Taken 6 | . . . . 1 . . 1 1 . . 1 1 1 . . Unknown Exits Taken 7 | 1 1 1 1 . . . . . 1 1 . . . 1 . Scrap Searched 16 | . . 3 . 7 . . . . 2 . 1 . 1 2 . Spaces Dug 70 | . 6 . . . 5 . 12 . . . . 47 . . . Terrain Destroyed 118 | . 22 10 . . 5 . 12 . . . 22 47 . . . Melee 58 | . . . . . 5 . 12 . . . . 41 . . . Projectile 17 | . . 10 . . . . . . . . 1 6 . . . AOE 43 | . 22 . . . . . . . . . 21 . . . . Terrain Rammed . | . . . . . . . . . . . . . . . . Walls Destroyed . | . . . . . . . . . . . . . . . . Machines Disabled . | . . . . . . . . . . . . . . . . Actions | -11 -10 -10 -8 -8 -6 -6 -6 -6 -6 -6 -5 -5 -5 -5 -5 --------- Run | Yrd Mat Sub Rec Scr Fac Was Fac Low Low Dat Pro Fac Upp Upp War Total 13134 | 72 717 1553 739 1673 669 95 2144 323 521 81 392 2656 344 351 804 Wait 748 | . 81 12 4 . 100 . 222 . 4 . 10 280 17 18 . Move 11308 | 53 549 1449 732 1632 516 94 1655 306 498 81 348 2027 283 308 777 Hop . | . . . . . . . . . . . . . . . . Pick Up 163 | 6 21 9 1 17 8 . 32 3 9 . 12 27 5 5 8 Fast Attach 71 | 7 1 3 . 1 1 1 17 2 1 . 2 29 . 2 4 Attach 59 | . 1 4 . 1 7 . 20 1 1 . 2 15 3 3 1 Detach 8 | . . . . 1 . . 2 1 1 . . 3 . . . Swap 153 | 1 8 5 1 5 8 . 26 4 . . 5 74 13 1 2 Drop 147 | . 14 13 1 16 2 . 24 6 2 . 1 45 9 2 12 Fire 163 | 5 42 57 . . 16 . 27 . . . 9 7 . . . Melee 311 | . . . . . 9 . 119 . 5 . 3 149 14 12 . Ram . | . . . . . . . . . . . . . . . . Kick . | . . . . . . . . . . . . . . . . Crush . | . . . . . . . . . . . . . . . . Escape Stasis 2 | . . . . . 2 . . . . . . . . . . Rewire . | . . . . . . . . . . . . . . . . Trap 1 | . . 1 . . . . . . . . . . . . . Miscellaneous . | . . . . . . . . . . . . . . . . Route ------- -11/Scrapyard -10/Materials (discovered 4 exits: [*Mat x2] / [*Min] / *Sub) -10/Subcaves -8/Recycling (discovered 2 exits: *Fac / *Scr) -8/Scraptown (discovered 2 exits: *Fac x2) -6/Factory (discovered 2 exits: Fac / Low) -6/Waste -6/Factory -6/Lower Caves -6/Lower Caves (discovered 2 exits: *Fac / *Dat) -6/Data Miner -5/Proximity Caves -5/Factory (discovered 3 exits: *Fac x2 / *Upp) -5/Upper Caves -5/Upper Caves -5/Warlord History --------- Turn | Location | Event 6 | -11/Scrapyard | Discovered new exit (range 15) 116 | -11/Scrapyard | Entered Materials 171 | -10/Materials | Discovered new exit (range 18) 274 | -10/Materials | Discovered new exit (range 15) 301 | -10/Materials | Build established: Mutant 733 | -10/Materials | Discovered new exit (range 16) 996 | -10/Materials | Repaired Lgt. Treads 1024 | -10/Materials | Repaired Lgt. Treads 1222 | -10/Materials | Discovered new exit (range 10) 1238 | -10/Materials | Entered Subcaves 1283 | -10/Subcaves | A swath of the cavern ceiling suddenly collapsed 1504 | -10/Subcaves | Discovered new exit (range 14) 3190 | -10/Subcaves | Build established: Scavenger-Mutant 3192 | -10/Subcaves | Learned 4 Materials zone layouts 3533 | -10/Subcaves | Learned location of 1 exit from Materials 3578 | -10/Subcaves | Shifting Twisted Machinery released Mak. Light Armor Plating 3585 | -10/Subcaves | Shifting Twisted Machinery released Flamer 3677 | -10/Subcaves | Visited Clippyterm 3683 | -10/Subcaves | Learned Research security intel 3717 | -10/Subcaves | Shifting Twisted Machinery released Mak. Spear 3718 | -10/Subcaves | Shifting Twisted Machinery released Riot Gun 4039 | -10/Subcaves | Build established: Mutant 4190 | -10/Subcaves | Entered Recycling 4546 | -8/Recycling | Discovered new exit (range 7) 4994 | -8/Recycling | Scanned before Scraplab entrance 5569 | -8/Recycling | Entered Scraplab 5584 | -8/Recycling | Discovered new exit (range 2) 5588 | -8/Recycling | Entered Scraptown 5731 | -8/Scraptown | Scanned Subdweller tech in exchange for log data 5735 | -8/Scraptown | Learned Research trap positions 5737 | -8/Scraptown | Learned Factory terminal intel 5739 | -8/Scraptown | Learned 8 Factory zone layouts 5767 | -8/Scraptown | Discovered new exit (range 9) 6209 | -8/Scraptown | Visited Shadow of the Wyrm 6239 | -8/Scraptown | Visited Bundlers 6318 | -8/Scraptown | Visited Spacefarers 6351 | -8/Scraptown | Visited Awakened 6378 | -8/Scraptown | Visited TADAMA 6410 | -8/Scraptown | Visited Cave Peace 6432 | -8/Scraptown | Visited UFD Registry 6432 | -8/Scraptown | Registered with UFD as "Ionbomber" 6468 | -8/Scraptown | Visited A0-MCA Data Center 6475 | -8/Scraptown | Given an A- rating by A0-MCA 6482 | -8/Scraptown | Found A0-MCA's Component Scanner 6510 | -8/Scraptown | Visited Curators Association 6548 | -8/Scraptown | Visited Research Penetration Think Tank 6594 | -8/Scraptown | Delivered Scrap Shield to a Scientist 6696 | -8/Scraptown | Visited Scrap Suit Storage 6729 | -8/Scraptown | Visited Scrapoid Pod Storage 6753 | -8/Scraptown | Visited Observation Area 6778 | -8/Scraptown | Visited Cartography Club 6846 | -8/Scraptown | Found Surveybot 17 Chip 7034 | -8/Scraptown | Visited Botcube Research 7064 | -8/Scraptown | Visited Modified Component R&D 7330 | -8/Scraptown | Learned location of Storage (-8) 7330 | -8/Scraptown | Learned location of Zion (-7) 7330 | -8/Scraptown | Learned location of Warlord (-5) 7330 | -8/Scraptown | Learned 16 Materials zone layouts 7330 | -8/Scraptown | Learned 16 Research zone layouts 7330 | -8/Scraptown | Learned 8 Access zone layouts 7330 | -8/Scraptown | Learned 4 Mines zone layouts 7330 | -8/Scraptown | Learned 20 Lower Caves zone layouts 7330 | -8/Scraptown | Learned 20 Upper Caves zone layouts 7330 | -8/Scraptown | Learned location of 1 exit from Factory 7330 | -8/Scraptown | Learned location of 1 exit from Lower Caves 7330 | -8/Scraptown | Identified exit to Factory 7444 | -8/Scraptown | Found Scrap Suit 7652 | -8/Scraptown | Met Optimus 7652 | -8/Scraptown | Accepted into 0bPrime 7726 | -8/Scraptown | Entered Factory 7726 | -6/Factory | Evolved 8 slots: Power x1, Propulsion x3, Utility x3, Weapon x1 7727 | -6/Factory | Identified exit to Lower Caves 7728 | -6/Factory | Identified exit to Factory 7729 | -6/Factory | Loaded intel: 26 terminal locations 8043 | -6/Factory | Build established: Scrapper 8205 | -6/Factory | Garrison activated, responded to threat 8355 | -6/Factory | Repaired Myomer Leg 8459 | -6/Factory | Sucked down chute 8459 | -6/Factory | Entered Waste 8472 | -6/Waste | Spotted C-40 Crusher 8474 | -6/Waste | EMP discharged 8493 | -6/Waste | Spotted C-40 Crusher 8493 | -6/Waste | Spotted C-40 Crusher 8508 | -6/Waste | Spotted C-40 Crusher 8519 | -6/Waste | Crushed by Compactor (1 part destroyed, 1 dropped) 8529 | -6/Waste | Spotted C-40 Crusher 8529 | -6/Waste | Spotted C-40 Crusher 8551 | -6/Waste | Discovered new exit (range 11) 8562 | -6/Waste | Entered Factory 8763 | -6/Factory | System corruption reached 10% 8778 | -6/Factory | Found Hvy. Insulated Plating 8978 | -6/Factory | Build established: Scavenger-Scrapper 9221 | -6/Factory | Loaded intel: 8 recycling unit locations 9562 | -6/Factory | Lost 8 parts (2p3n3u) 10183 | -6/Factory | Build established: Scavenger-Mutant 10294 | -6/Factory | Learned location of Protoforge (-3) 10525 | -6/Factory | Lost 4 parts (1p1n1u1w) 10682 | -6/Factory | Build established: Mutant 10776 | -6/Factory | Core integrity fell below 50% 10837 | -6/Factory | Lost 3 parts (3u) 11244 | -6/Factory | Found Prototype Launcher 11319 | -6/Factory | Discovered exit to Lower Caves (range 11) 11419 | -6/Factory | Entered Lower Caves 11420 | -6/Lower Caves | Identified exit to Lower Caves 11421 | -6/Lower Caves | UFD Scientist delivered a prototype 11430 | -6/Lower Caves | Found Prototype Protection 11431 | -6/Lower Caves | Identified Rocket Array 11435 | -6/Lower Caves | Identified Enh. Scrap Shield 11543 | -6/Lower Caves | Entered an active Warlord outpost 11574 | -6/Lower Caves | Learned Armory trap positions 11574 | -6/Lower Caves | Learned Factory emergency access door positions 11574 | -6/Lower Caves | Learned Armory stockpile data 11574 | -6/Lower Caves | Learned Research security intel 11574 | -6/Lower Caves | Learned Research garrison access intel 11574 | -6/Lower Caves | Learned Extension garrison access intel 11874 | -6/Lower Caves | Learned Factory emergency access door positions 11915 | -6/Lower Caves | Encountered a Warlord checkpoint 11926 | -6/Lower Caves | Entered another Lower Caves area 11973 | -6/Lower Caves | Build established: Gladiator 12232 | -6/Lower Caves | Encountered a Warlord checkpoint 12462 | -6/Lower Caves | Learned 8 Factory zone layouts 12706 | -6/Lower Caves | Discovered new exit (range 13) 12755 | -6/Lower Caves | Entered Data Miner 12755 | -6/Data Miner | Discovered new exit (range 6) 12786 | -6/Data Miner | Met Data Miner 12819 | -6/Data Miner | Learned location of Section 7 (-3) 12819 | -6/Data Miner | Acquired the access code to Warlord's prototype stash 12850 | -6/Data Miner | Received God Mode back door access code from Data Miner 12885 | -6/Data Miner | Entered Proximity Caves 12949 | -5/Proximity Caves | Learned Factory garrison access intel 12996 | -5/Proximity Caves | Learned location of 2 exits from Factory 13021 | -5/Proximity Caves | Attracted the attention of an 0b10 checkpoint 13026 | -5/Proximity Caves | Escorted by Enhanced Grunt 13341 | -5/Proximity Caves | Lost 7 parts (5n2u) 13562 | -5/Proximity Caves | Discovered exit to Factory (range 10) 13589 | -5/Proximity Caves | Entered Factory 13589 | -5/Factory | Evolved 2 slots: Utility x1, Weapon x1 13590 | -5/Factory | Identified exit to Upper Caves 13590 | -5/Factory | Identified exit to Factory 13593 | -5/Factory | Loaded intel: 4 garrison access locations 14089 | -5/Factory | Loaded intel: 8 recycling unit locations 14112 | -5/Factory | Incoming investigation squad redirected 14482 | -5/Factory | Lost 3 parts (2u1w) 14554 | -5/Factory | Build established: Scavenger-Gladiator 15087 | -5/Factory | Incoming investigation squad redirected 15097 | -5/Factory | Incoming investigation squad redirected 15549 | -5/Factory | Repaired Microactuators 15741 | -5/Factory | Discovered exit to Factory (range 10) 16325 | -5/Factory | Spotted B-75 Beast 16367 | -5/Factory | Build established: Gladiator 16525 | -5/Factory | Core integrity fell below 50% 16584 | -5/Factory | Lost 3 parts (2u1w) 17035 | -5/Factory | Entered Upper Caves 17036 | -5/Upper Caves | Identified exit to Upper Caves 17077 | -5/Upper Caves | Attracted the attention of an 0b10 checkpoint 17392 | -5/Upper Caves | System corruption reached 10% 17454 | -5/Upper Caves | Entered another Upper Caves area 17527 | -5/Upper Caves | Lost 4 parts (1n2u1w) 17797 | -5/Upper Caves | Learned location of Armory (-3) 17872 | -5/Upper Caves | Discovered new exit (range 12) 17887 | -5/Upper Caves | Entered Warlord 17934 | -5/Warlord | System corruption cleaned by Quarantine Array 18046 | -5/Warlord | Found Prototype Device 18046 | -5/Warlord | Identified Minesniffer Drone Bay 18053 | -5/Warlord | Found Minesniffer Drone Bay 18056 | -5/Warlord | Found Minesniffer Drone Bay 18391 | -5/Warlord | Opened Warlord's prototype stash 18411 | -5/Warlord | Found Prototype Reactor 18411 | -5/Warlord | Identified Vortex Chain Reactor 18423 | -5/Warlord | Found Prototype Hackware 18427 | -5/Warlord | Found Prototype Processor 18533 | -5/Warlord | Warlord's base attacked by MAIN.C 18551 | -5/Warlord | Spotted B-75 Beast 18686 | -5/Warlord | Opened side exit 18743 | -5/Warlord | Core integrity fell below 20% 18823 | -5/Warlord | Destroyed by P-80 Master with Gamma Rifle Last Messages --------------- corruption cleaned. 18736_ Acquired 9 matter. 18741_ The unstable cave ceiling collapses. 18742_ Penetrated by Slug. 18748_ Slug penetrates Wall. 18759_ Imp. Sensor Array destroyed. 18776_ P-70 Sage resets S-27 Virus, system corruption cleaned. 18777_ Flexi-carbon Leg destroyed. 18779_ Slug penetrates Wall. 18781_ Flexi-carbon Leg destroyed. 18787_ The unstable cave ceiling collapses. 18790_ Slug penetrates Wall. 18790_ Penetrated by Slug. 18795_ The unstable cave ceiling collapses. 18805_ Plasma Sword destroyed. 18808_ Enh. Flexi-carbon Leg destroyed. 18812_ System corrupted: Heat flow error (+110). 18823_ ANNOUNCEMENT: MAIN.C reinforcements approaching through caves, arriving soon. Map ----- +----------------------------------------------------+ | ???# # #?????#""#????? | | ???#&& #+#+##### # ## #?????#""#????? | | ???###### ####### #??????""?????? | | ????????# ]&& #?????# """" #??????""?????? | | ????????# & && #??#### """" #?????????????? | | ????????# #### ## """" #?????????????? | | ????????# ## """" #?????????????? | | ????????# ] ## #?????????????? | | ????????# + #?????????????? | | ????????##########/#################?????????????? | | ??????????????# #?????????????????????????? | | ??????????????# """ #?????????????????????????? | | ??????????????# ^""" #?????????????????????????? | | ??????????????# """ ^ #?????????????????????????? | | ??????????????# #?????????????????????????? | | ??????????????# """ #?#############???????????? | | ??????????????# """ #?#""!! ## #???????????? | | ??????????????# """ #?#""!!!## #???????????? | | ??????????????# #?#"" !! + #???????????? | | ??????????????######/###?#""!!!## #???????????? | | ???????????????????# #???######### ##???????????? | | ??????????????###??# #???????????# #????????????? | | ??????????????# ??# #???????????# #???????????## | | ??????????????# ?# ###?###?????# #???????###?# | | ??????????????# ## #Y### ####### #########X### | | ??????????????# + @ s | | ??????????????# # p | | ??????????????################################# | | ??????????????????????????????????????????????### | | ????????????????????????????????????????????????## | | ?????????????????????????????????????????????????? | | ?????????????????????????????????????????????????? | | ?????????????????????????????????????????????????? | | | | | | | | | | | | | | | | | | | | | | | | | | | | | | | | | | | +----------------------------------------------------+ Best States ------------- Heat Dissipation 40 Energy Generation 55 Energy Capacity 700 Matter Stores 300 Matter Capacity 300 Sight Range 16 Robot Scan Range 15 Terrain Scan Range 16 Terrain Scan Density 1210 Cloak Strength 2 Armor Coverage 800 Resistance: EM 30 Melee Speed Boost 20 Evasion (%) 70 Targeting Accuracy 6 Melee Accuracy 8 Core Analysis 6 Recoil Reduction 3 Offensive Hacking 14 Item Schematics ----------------- Hcp. Storage Unit | -10/Materials | Hacked Combat Drone Bay | -6/Data Miner | Free Lgt. Regenerative Plating | -6/Data Miner | Free Cld. Gravmag System | -6/Data Miner | Free Exp. Heat Sink | -6/Data Miner | Free Enh. Coil Gun | -6/Data Miner | Free Myomer Leg | -6/Data Miner | Free Graphene Brace | -6/Data Miner | Free Hardcell Cannon | -6/Data Miner | Free Robot Schematics ------------------ P-60 Hacker | -6/Data Miner | Free A-15 Conveyor | -6/Data Miner | Free B-60 Warrior | -6/Data Miner | Free E-15 Imp | -6/Data Miner | Free C-35 Carver | -6/Data Miner | Free A-27 Freighter | -6/Data Miner | Free Fabricated ------------ Nothing Repaired ---------- Lgt. Treads | 43% | -10/Materials Lgt. Treads | 51% | -10/Materials Myomer Leg | 43% | -6/Factory Microactuators | 22% | -5/Factory Alien Tech Used ----------------- None Achievements -------------- None Challenges ------------ None Game ------ Seed ArchitectUltimateArmor Manual? 0 Play Time 03:02:56 Cumulative 180.5 hours Start 2025.08.08 @ 20:06:27 End 2025.08.08 @ 23:47:06 Sessions 3 Manual Loads 0 Difficulty Rogue Special Mode None Game No. 76 Rogue 76 Adventurer 0 Explorer 0 Win Type - Total 2 Types 2/0/0/0/0/0/0/0/0/0 Lore% 71 Gallery% 68 Achievement% 57 Wizard Run 0 Options --------- Layout 1 ASCII 0 Keyboard 0 Movement Mouse Keybinds 0 Fullscreen 1 Font 32/Smallcaps Map View 50x35 Zoom Use 0% Tactical HUD 1 Map Filters NONE Filters NONE Steam 1 RUN: 5d13a520-387e-4c3c-9af3-fbbde35d4a0f